fUST/lending_fUST_20250307
["ID","MTS","AMOUNT","RATE_DAILY","PERIOD"]
[355589992,1741336234992,-2624.89,0.00019178,2]
[355589994,1741336235001,-500.0,0.00019178,2]
[355589996,1741336235012,-536.6,0.00019178,2]
[355589997,1741336235021,-8927.39,0.00019178,2]
[355589999,1741336235031,-500.0,0.00019178,2]
[355590001,1741336235041,-500.0,0.00019178,2]
[355590003,1741336235050,-500.0,0.00019178,2]
[355590005,1741336235061,-1019.22,0.00019178,2]
[355590007,1741336235071,-500.0,0.00019178,2]
[355590008,1741336235085,-500.0,0.00019178,2]
[355590010,1741336235095,-1620.71,0.00019178,2]
[355590012,1741336235104,-1521.46,0.00019178,2]
[355590014,1741336235114,-547.4,0.00019178,2]
[355590016,1741336235124,-2394.07,0.00019178,2]
[355590018,1741336235135,-500.0,0.00019178,2]
[355590019,1741336235144,-1420.81,0.00019178,2]
[355590021,1741336235154,-1898.15,0.00019178,2]
[355590023,1741336235164,-1172.82,0.00019178,2]
[355590025,1741336235174,-102269.48,0.00019178,2]
[355590027,1741336235183,-527.52,0.00019178,2]
[355590029,1741336235193,-530.00883952,0.00019178,2]
[355590031,1741336235202,-782.86,0.00019178,2]
[355590033,1741336235211,-750.14,0.00019178,2]
[355590034,1741336235220,-1789.97,0.00019178,2]
[355590036,1741336235229,-500.0,0.00019178,2]
[355590038,1741336235238,-1243.51,0.00019178,2]
[355590039,1741336235248,-500.0,0.00019178,2]
[355590040,1741336235257,-3590.82,0.00019178,2]
[355590041,1741336235267,-1818.58,0.00019178,2]
[355590042,1741336235276,-195.59460678,0.00019178,2]
[355590043,1741336235285,-500.0,0.00019178,2]
[355590044,1741336235294,-500.0,0.00019178,2]
[355590045,1741336235303,-151.0,0.00019178,2]
[355590046,1741336235312,-151.0,0.00019178,2]
[355590047,1741336235321,-158.467092,0.00019178,2]
[355590048,1741336235330,-911.83,0.00019178,2]
[355590049,1741336235340,-1902.03,0.00019178,2]
[355590050,1741336235348,-597.98,0.00019178,2]
[355590051,1741336235358,-1170.18,0.00019178,2]
[355590052,1741336235367,-500.0,0.00019178,2]
[355590053,1741336235376,-8842.05,0.00019178,2]
[355590054,1741336235386,-500.0,0.00019178,2]
[355590055,1741336235395,-500.0,0.00019178,2]
[355590056,1741336235404,-500.0,0.00019178,2]
[355590057,1741336235412,-534.88,0.00019178,2]
[355590058,1741336235421,-842.15,0.00019178,2]
[355590059,1741336235430,-1804.72,0.00019178,2]
[355590060,1741336235439,-12231.55,0.00019178,2]
[355590061,1741336235448,-2178.97,0.00019178,2]
[355590062,1741336235458,-500.0,0.00019178,2]
[355590063,1741336235467,-985.53,0.00019178,2]
[355590064,1741336235476,-500.0,0.00019178,2]
[355590065,1741336235485,-500.0,0.00019178,2]
[355590066,1741336235494,-500.0,0.00019178,2]
[355590067,1741336235502,-924.53,0.00019178,2]
[355590068,1741336235511,-500.0,0.00019178,2]
[355590069,1741336235520,-3255.98,0.00019178,2]
[355590070,1741336235529,-500.0,0.00019178,2]
[355590071,1741336235538,-2756.75,0.00019178,2]
[355590073,1741336235548,-3569.11,0.00019178,2]
[355590074,1741336235557,-500.0,0.00019178,2]
[355590075,1741336235567,-576.08,0.00019178,2]
[355590077,1741336235576,-500.0,0.00019178,2]
[355590078,1741336235585,-1610.58,0.00019178,2]
[355590079,1741336235594,-993.83,0.00019178,2]
[355590081,1741336235603,-690.33,0.00019178,2]
[355590083,1741336235613,-6828.16,0.00019178,2]
[355590085,1741336235622,-1209.68,0.00019178,2]
[355590087,1741336235632,-500.0,0.00019178,2]
[355590089,1741336235641,-500.0,0.00019178,2]
[355590091,1741336235650,-804.61,0.00019178,2]
[355590093,1741336235660,-3376.74,0.00019178,2]
[355590095,1741336235669,-1942.87,0.00019178,2]
[355590097,1741336235678,-5457.62,0.00019178,2]
[355590099,1741336235687,-582.99,0.00019178,2]
[355590101,1741336235696,-521.04,0.00019178,2]
[355590103,1741336235705,-563.8,0.00019178,2]
[355590105,1741336235716,-936.23,0.00019178,2]
[355590107,1741336235725,-496.6086476,0.00019178,2]
[355590109,1741336235734,-1507.59,0.00019178,2]
[355590111,1741336235744,-500.0,0.00019178,2]
[355590113,1741336235753,-151.0,0.00019178,2]
[355590115,1741336235762,-500.0,0.00019178,2]
[355590117,1741336235771,-935.78,0.00019178,2]
[355590119,1741336235780,-157.560838,0.00019178,2]
[355590121,1741336235790,-1792.61,0.00019178,2]
[355590123,1741336235799,-602.2,0.00019178,2]
[355590125,1741336235808,-841.49,0.00019178,2]
[355590127,1741336235817,-1897.52,0.00019178,2]
[355590129,1741336235826,-1559.85,0.00019178,2]
[355590131,1741336235835,-609.49,0.00019178,2]
[355590133,1741336235845,-499.54664048,0.00019178,2]
[355590135,1741336235855,-500.0,0.00019178,2]
[355590137,1741336235864,-564.81,0.00019178,2]
[355590139,1741336235873,-768.16,0.00019178,2]
[355590141,1741336235883,-1278.71,0.00019178,7]
[355590143,1741336235892,-500.0,0.00019178,2]
[355590145,1741336235902,-1626.09,0.00019178,2]
[355590147,1741336235911,-967.45,0.00019178,2]
[355590149,1741336235920,-1417.07,0.00019178,2]
[355590151,1741336235929,-151.0,0.00019178,2]
[355590153,1741336235938,-151.0,0.00019178,2]
[355590155,1741336235948,-151.0,0.00019178,2]
[355590157,1741336235957,-551.67,0.00019178,2]
[355590159,1741336235966,-151.0,0.00019178,2]
[355590161,1741336235976,-1049.84,0.00019178,2]
[355590163,1741336235985,-889.66,0.00019178,2]
[355590165,1741336235994,-500.0,0.00019178,2]
[355590167,1741336236004,-834.89,0.00019178,2]
[355590169,1741336236013,-992.36,0.00019178,2]
[355590171,1741336236022,-5768.2,0.00019178,2]
[355590172,1741336236032,-4691.08,0.00019178,2]
[355590174,1741336236041,-500.0,0.00019178,2]
[355590176,1741336236051,-500.0,0.00019178,2]
[355590178,1741336236060,-5041.97,0.00019178,2]
[355590180,1741336236076,-510.8,0.00019178,2]
[355590182,1741336236085,-5998.48,0.00019178,2]
[355590184,1741336236095,-691.35,0.00019178,2]
[355590186,1741336236104,-500.0,0.00019178,2]
[355590188,1741336236114,-576.47697982,0.00019178,2]
[355590190,1741336236123,-500.0,0.00019178,2]
[355590192,1741336236133,-576.98703757,0.00019178,2]
[355590194,1741336236142,-500.0,0.00019178,2]
[355590196,1741336236152,-793.95,0.00019178,2]
[355590198,1741336236162,-500.0,0.00019178,2]
[355590200,1741336236172,-1803.74,0.00019178,2]
[355590202,1741336236181,-734.98,0.00019178,2]
[355590203,1741336236190,-500.0,0.00019178,2]
[355590205,1741336236199,-500.0,0.00019178,2]
[355590207,1741336236209,-2374.33,0.00019178,2]
[355590209,1741336236219,-685.17,0.00019178,2]
[355590211,1741336236228,-500.0,0.000192,2]
[355590213,1741336236238,-500.0,0.000192,2]
[355590215,1741336236248,-500.0,0.000192,2]
[355590217,1741336236257,-500.0,0.000192,2]
[355590219,1741336236267,-500.0,0.000192,2]
[355590221,1741336236276,-500.0,0.000192,2]
[355590223,1741336236285,-500.0,0.000192,2]
[355590225,1741336236295,-566.18175505,0.000192,2]
[355590227,1741336236304,-426.47605449,0.000192,2]
[355590229,1741336236313,-192.7152721,0.000192,2]
[355590231,1741336236323,-153.4851747,0.000192,2]
[355590233,1741336236333,-835.59658419,0.000192,2]
[355590235,1741336236342,-175.03916878,0.000192,2]
[355590237,1741336236352,-500.0,0.000192,2]
[355590239,1741336236361,-500.0,0.000192,2]
[355590241,1741336236371,-500.0,0.000192,2]
[355590243,1741336236380,-500.0,0.000192,2]
[355590245,1741336236390,-500.0,0.000192,2]
[355590247,1741336236400,-500.0,0.000192,2]
[355590249,1741336236409,-500.0,0.000192,2]
[355590251,1741336236419,-500.0,0.000192,2]
[355590253,1741336236428,-500.0,0.000192,2]
[355590255,1741336236438,-500.0,0.000192,2]
[355590257,1741336236447,-500.0,0.000192,2]
[355590259,1741336236457,-500.0,0.000192,2]
[355590261,1741336236467,-500.0,0.000192,2]
[355590263,1741336236476,-500.0,0.000192,2]
[355590265,1741336236486,-500.0,0.000192,2]
[355590267,1741336236495,-500.0,0.000192,2]
[355590269,1741336236504,-500.0,0.000192,2]
[355590271,1741336236513,-500.0,0.000192,2]
[355590273,1741336236522,-503.23015208,0.000192,2]
[355590274,1741336236531,-558.69423757,0.000192,2]
[355590277,1741336236541,-500.0,0.000192,2]
[355590279,1741336236550,-500.0,0.000192,2]
[355590281,1741336236559,-500.0,0.000192,2]
[355590283,1741336236569,-500.0,0.000192,2]
[355590285,1741336236579,-500.0,0.000192,2]
[355590287,1741336236588,-500.0,0.000192,2]
[355590289,1741336236597,-151.0,0.000192,2]
[355590291,1741336236611,-151.0,0.000192,2]
[355590293,1741336236620,-151.42303,0.000192,2]
[355590295,1741336236630,-151.42303,0.000192,2]
[355590297,1741336236640,-173.767796,0.000192,2]
[355590299,1741336236650,-151.0,0.000192,2]
[355590301,1741336236659,-562.0,0.00019231,2]
[355590303,1741336236670,-562.0,0.00019231,2]
[355590305,1741336236679,-562.0,0.00019231,2]
[355590307,1741336236689,-562.0,0.00019231,2]
[355590309,1741336236698,-562.0,0.00019231,2]
[355590311,1741336236707,-562.0,0.00019231,2]
[355590313,1741336236717,-562.0,0.00019231,2]
[355590315,1741336236726,-562.0,0.00019231,2]
[355590317,1741336236736,-562.0,0.00019231,2]
[355590319,1741336236748,-562.0,0.00019231,2]
[355590321,1741336236757,-562.0,0.00019231,2]
[355590323,1741336236767,-562.0,0.00019231,2]
[355590325,1741336236777,-562.0,0.00019231,2]
[355590327,1741336236787,-562.0,0.00019231,2]
[355590329,1741336236796,-151.0,0.00019231,2]
[355590331,1741336236806,-265.479511,0.00019231,2]
[355590333,1741336236816,-265.479511,0.00019231,2]
[355590335,1741336236826,-175.221531,0.00019231,2]
[355590337,1741336236836,-175.221531,0.00019231,2]
[355590339,1741336236845,-3000.0,0.00019292,2]
[355590341,1741336236856,-151.0,0.000193,2]
[355590343,1741336236865,-151.0,0.000193,2]
[355590345,1741336236875,-151.0,0.000193,2]
[355590347,1741336236886,-151.0,0.000194,2]
[355590349,1741336236895,-151.42303,0.00019452,2]
[355590351,1741336236904,-151.42303,0.00019452,2]
[355590353,1741336236913,-151.42303,0.00019452,2]
[355590355,1741336236923,-151.42303,0.00019452,2]
[355590357,1741336236933,-151.42303,0.00019452,2]
[355590359,1741336236943,-151.423028,0.00019452,2]
[355590361,1741336236952,-500.0,0.00019452,2]
[355590363,1741336236962,-1332.94,0.00019452,2]
[355590365,1741336236971,-151.0,0.00019452,2]
[355590367,1741336236981,-151.0,0.00019452,2]
[355590369,1741336236990,-151.0,0.00019452,2]
[355590371,1741336237000,-151.0,0.00019452,2]
[355590373,1741336237010,-617.81,0.00019452,2]
[355590375,1741336237019,-500.0,0.00019452,2]
[355590377,1741336237029,-608.45,0.00019452,2]
[355590379,1741336237039,-500.0,0.00019452,2]
[355590381,1741336237048,-763.32,0.00019452,3]
[355590383,1741336237058,-500.0,0.00019452,2]
[355590385,1741336237069,-575.61,0.00019452,2]
[355590387,1741336237082,-500.0,0.00019452,2]
[355590389,1741336237092,-500.0,0.00019452,2]
[355590391,1741336237102,-500.0,0.00019452,2]
[355590393,1741336237112,-500.0,0.00019452,2]
[355590395,1741336237122,-500.0,0.00019452,2]
[355590397,1741336237131,-500.0,0.00019452,2]
[355590399,1741336237141,-959.98,0.00019452,2]
[355590401,1741336237153,-500.0,0.00019452,2]
[355590403,1741336237163,-500.0,0.00019452,2]
[355590405,1741336237173,-500.0,0.00019452,2]
[355590407,1741336237183,-500.0,0.00019452,2]
[355590409,1741336237193,-500.0,0.00019452,2]
[355590411,1741336237203,-500.0,0.00019452,2]
[355590413,1741336237213,-666.96,0.00019452,2]
[355590415,1741336237222,-780.12,0.00019452,2]
[355590417,1741336237232,-644.87,0.00019452,2]
[355590419,1741336237242,-500.0,0.00019452,2]
[355590421,1741336237252,-527.08,0.00019452,2]
[355590423,1741336237261,-500.0,0.00019452,2]
[355590442,1741336237427,-500.0,0.00019452,2]
[355590444,1741336237442,-500.0,0.00019452,2]
[355590446,1741336237452,-1040.32,0.00019452,2]
[355590448,1741336237461,-500.0,0.00019452,2]
[355590450,1741336237470,-683.87,0.00019452,2]
[355590452,1741336237479,-500.0,0.00019452,2]
[355590454,1741336237488,-500.0,0.00019452,2]
[355590456,1741336237497,-500.0,0.00019452,2]
[355590458,1741336237506,-500.0,0.00019452,2]
[355590460,1741336237516,-500.0,0.00019452,2]
[355590462,1741336237525,-265.479511,0.00019452,2]
[355590464,1741336237534,-265.479511,0.00019452,2]
[355590465,1741336237543,-265.479511,0.00019452,2]
[355590466,1741336237553,-265.479511,0.00019452,2]
[355590467,1741336237562,-265.479511,0.00019452,2]
[355590468,1741336237571,-265.479511,0.00019452,2]
[355590470,1741336237580,-265.479511,0.00019452,2]
[355590472,1741336237590,-265.479509,0.00019452,2]
[355590474,1741336237599,-662.36,0.00019452,2]
[355590476,1741336237608,-846.37,0.00019452,2]
[355590478,1741336237617,-510.0035188,0.00019452,2]
[355590480,1741336237626,-500.0,0.00019452,2]
[355590482,1741336237636,-500.0,0.00019452,2]
[355590484,1741336237645,-500.0,0.00019452,2]
[355590486,1741336237654,-747.78,0.00019452,2]
[355590487,1741336237664,-838.47,0.00019452,2]
[355590488,1741336237673,-500.0,0.00019452,2]
[355590489,1741336237682,-500.0,0.00019452,2]
[355590490,1741336237691,-662.31,0.00019452,2]
[355590491,1741336237701,-175.221531,0.00019452,2]
[355590493,1741336237710,-175.221531,0.00019452,2]
[355590495,1741336237720,-175.221531,0.00019452,2]
[355590497,1741336237729,-175.221531,0.00019452,2]
[355590499,1741336237738,-500.0,0.00019452,2]
[355590501,1741336237747,-175.221531,0.00019452,2]
[355590503,1741336237757,-175.221531,0.00019452,2]
[355590505,1741336237766,-175.221531,0.00019452,2]
[355590507,1741336237775,-500.0,0.00019452,2]
[355590509,1741336237785,-175.221537,0.00019452,2]
[355590511,1741336237794,-575.37,0.00019452,2]
[355590513,1741336237803,-500.0,0.00019452,2]
[355590515,1741336237813,-727.59,0.00019452,2]
[355590517,1741336237822,-500.0,0.00019452,2]
[355590519,1741336237832,-1064.79,0.00019452,2]
[355590521,1741336237841,-506.28,0.00019452,2]
[355590524,1741336237850,-500.0,0.00019452,2]
[355590526,1741336237859,-500.0,0.00019452,2]
[355590529,1741336237869,-500.0,0.00019452,2]
[355590532,1741336237878,-500.0,0.00019452,2]
[355590535,1741336237888,-1701.12,0.00019452,2]
[355590538,1741336237897,-500.0,0.00019452,2]
[355590541,1741336237907,-500.0,0.00019452,2]
[355590544,1741336237916,-1562.91,0.00019452,2]
[355590546,1741336237925,-500.0,0.00019452,2]
[355590549,1741336237935,-1677.5,0.00019452,2]
[355590552,1741336237944,-665.7,0.00019452,2]
[355590554,1741336237954,-501.42,0.00019452,2]
[355590556,1741336237963,-500.0,0.00019452,2]
[355590558,1741336237973,-759.5,0.00019452,2]
[355590560,1741336237982,-1318.97,0.00019452,2]
[355590562,1741336237992,-500.0,0.00019452,2]
[355590564,1741336238001,-752.01,0.00019452,2]
[355590566,1741336238011,-805.75,0.00019452,2]
[355590568,1741336238020,-500.0,0.00019452,2]
[355590570,1741336238030,-583.87,0.00019452,2]
[355590572,1741336238039,-500.0,0.00019452,2]
[355590574,1741336238049,-500.0,0.00019452,2]
[355590576,1741336238058,-1258.08,0.00019452,2]
[355590578,1741336238071,-550.86,0.00019452,2]
[355590580,1741336238080,-500.0,0.00019452,2]
[355590582,1741336238090,-723.03,0.00019452,2]
[355590584,1741336238099,-905.88,0.00019452,2]
[355590586,1741336238110,-762.67,0.00019452,2]
[355590588,1741336238119,-500.0,0.00019452,2]
[355590590,1741336238128,-639.06,0.00019452,2]
[355590592,1741336238139,-611.87,0.00019452,2]
[355590594,1741336238150,-1803.62,0.00019452,2]
[355590596,1741336238160,-758.28,0.00019452,2]
[355590598,1741336238170,-1171.51,0.00019452,2]
[355590600,1741336238179,-500.0,0.00019452,2]
[355590602,1741336238189,-500.0,0.00019452,2]
[355590604,1741336238198,-469.25565212,0.00019452,2]
[355590606,1741336238208,-500.0,0.00019452,2]
[355590608,1741336238217,-500.0,0.00019452,2]
[355590610,1741336238226,-1247.46,0.00019452,2]
[355590611,1741336238236,-1655.73,0.00019452,2]
[355590613,1741336238246,-2624.89,0.00019452,2]
[355590615,1741336238255,-500.0,0.00019452,2]
[355590617,1741336238265,-536.6,0.00019452,2]
[355590619,1741336238274,-8927.39,0.00019452,2]
[355590621,1741336238283,-500.0,0.00019452,2]
[355590623,1741336238293,-500.0,0.00019452,2]
[355590625,1741336238303,-500.0,0.00019452,2]
[355590627,1741336238312,-1019.22,0.00019452,2]
[355590629,1741336238321,-500.0,0.00019452,2]
[355590631,1741336238331,-500.0,0.00019452,2]
[355590633,1741336238340,-1620.71,0.00019452,2]
[355590635,1741336238349,-1521.46,0.00019452,2]
[355590637,1741336238358,-547.4,0.00019452,2]
[355590639,1741336238368,-2394.07,0.00019452,2]
[355590641,1741336238377,-500.0,0.00019452,2]
[355590643,1741336238388,-1420.81,0.00019452,2]
[355590645,1741336238397,-1898.15,0.00019452,2]
[355590647,1741336238407,-1172.82,0.00019452,2]
[355590649,1741336238417,-102269.48,0.00019452,2]
[355590651,1741336238426,-527.52,0.00019452,2]
[355590653,1741336238435,-782.86,0.00019452,2]
[355590655,1741336238447,-750.14,0.00019452,2]
[355590657,1741336238456,-1789.97,0.00019452,2]
[355590659,1741336238465,-500.0,0.00019452,2]
[355590661,1741336238475,-1243.51,0.00019452,2]
[355590663,1741336238484,-500.0,0.00019452,2]
[355590664,1741336238493,-3590.82,0.00019452,2]
[355590665,1741336238503,-1818.58,0.00019452,2]
[355590666,1741336238512,-500.0,0.00019452,2]
[355590667,1741336238521,-500.0,0.00019452,2]
[355590668,1741336238531,-911.83,0.00019452,2]
[355590669,1741336238540,-1902.03,0.00019452,2]
[355590670,1741336238549,-597.98,0.00019452,2]
[355590671,1741336238559,-1170.18,0.00019452,2]
[355590672,1741336238569,-500.0,0.00019452,2]
[355590674,1741336238578,-8842.05,0.00019452,2]
[355590675,1741336238588,-500.0,0.00019452,2]
[355590676,1741336238598,-500.0,0.00019452,2]
[355590677,1741336238607,-500.0,0.00019452,2]
[355590678,1741336238616,-534.88,0.00019452,2]
[355590679,1741336238626,-842.15,0.00019452,2]
[355590680,1741336238636,-1804.72,0.00019452,2]
[355590681,1741336238646,-12231.55,0.00019452,2]
[355590682,1741336238655,-2178.97,0.00019452,2]
[355590684,1741336238665,-500.0,0.00019452,2]
[355590686,1741336238675,-985.53,0.00019452,2]
[355590688,1741336238684,-500.0,0.00019452,2]
[355590690,1741336238694,-500.0,0.00019452,2]
[355590692,1741336238703,-500.0,0.00019452,2]
[355590694,1741336238713,-924.53,0.00019452,2]
[355590696,1741336238722,-500.0,0.00019452,2]
[355590698,1741336238732,-3255.98,0.00019452,2]
[355590700,1741336238742,-500.0,0.00019452,2]
[355590703,1741336238752,-2756.75,0.00019452,2]
[355590705,1741336238761,-3569.11,0.00019452,2]
[355590707,1741336238771,-500.0,0.00019452,2]
[355590709,1741336238780,-576.08,0.00019452,2]
[355590711,1741336238789,-500.0,0.00019452,2]
[355590713,1741336238799,-1610.58,0.00019452,2]
[355590715,1741336238808,-993.83,0.00019452,2]
[355590717,1741336238818,-690.33,0.00019452,2]
[355590718,1741336238827,-4435.09416563,0.00019452,2]
[355590722,1741336238858,-2393.06583437,0.00019452,2]
[355590724,1741336238867,-1209.68,0.00019452,2]
[355590726,1741336238876,-500.0,0.00019452,2]
[355590728,1741336238887,-500.0,0.00019452,2]
[355590730,1741336238896,-804.61,0.00019452,2]
[355590732,1741336238906,-3376.74,0.00019452,2]
[355590734,1741336238915,-1942.87,0.00019452,2]
[355590736,1741336238925,-5457.62,0.00019452,2]
[355590738,1741336238935,-582.99,0.00019452,2]
[355590740,1741336238944,-521.04,0.00019452,2]
[355590742,1741336238953,-563.8,0.00019452,2]
[355590744,1741336238968,-936.23,0.00019452,2]
[355590746,1741336238977,-1507.59,0.00019452,2]
[355590748,1741336238987,-500.0,0.00019452,2]
[355590750,1741336238996,-500.0,0.00019452,2]
[355590752,1741336239006,-935.78,0.00019452,2]
[355590754,1741336239016,-602.2,0.00019452,2]
[355590756,1741336239026,-1792.61,0.00019452,2]
[355590758,1741336239035,-841.49,0.00019452,2]
[355590760,1741336239045,-1897.52,0.00019452,2]
[355590762,1741336239054,-580.82914949,0.00019452,2]
[355590789,1741336240062,-151.0,0.00019178,2]
[355590790,1741336240075,-151.0,0.00019178,2]
[355590791,1741336240090,-198.53615,0.00019178,2]
[355590792,1741336240100,-979.02085051,0.00019452,2]
[355590793,1741336240110,-609.49,0.00019452,2]
[355590794,1741336240120,-500.0,0.00019452,2]
[355590795,1741336240130,-564.81,0.00019452,2]
[355590796,1741336240140,-768.16,0.00019452,2]
[355590797,1741336240150,-1278.71,0.00019452,7]
[355590798,1741336240160,-500.0,0.00019452,2]
[355590799,1741336240170,-1626.09,0.00019452,2]
[355590800,1741336240179,-173.18299949,0.00019452,2]
[355590801,1741336240191,-794.26700051,0.00019452,2]
[355590802,1741336240200,-1417.07,0.00019452,2]
[355590803,1741336240210,-551.67,0.00019452,2]
[355590804,1741336240219,-1049.84,0.00019452,2]
[355590805,1741336240229,-889.66,0.00019452,2]
[355590806,1741336240239,-500.0,0.00019452,2]
[355590807,1741336240248,-834.89,0.00019452,2]
[355590808,1741336240257,-992.36,0.00019452,2]
[355590809,1741336240267,-5768.2,0.00019452,2]
[355590810,1741336240277,-4691.08,0.00019452,2]
[355590811,1741336240286,-500.0,0.00019452,2]
[355590812,1741336240296,-500.0,0.00019452,2]
[355590813,1741336240305,-5041.97,0.00019452,2]
[355590814,1741336240315,-510.8,0.00019452,2]
[355590815,1741336240325,-5998.48,0.00019452,2]
[355590816,1741336240335,-691.35,0.00019452,2]
[355590817,1741336240344,-500.0,0.00019452,2]
[355590818,1741336240354,-222.91446523,0.00019452,2]
[355590819,1741336240363,-500.0,0.00019452,2]
[355590820,1741336240373,-500.0,0.00019452,2]
[355590821,1741336240383,-793.95,0.00019452,2]
[355590822,1741336240392,-1803.74,0.00019452,2]
[355590823,1741336240402,-734.98,0.00019452,2]
[355590824,1741336240411,-500.0,0.00019452,2]
[355590825,1741336240420,-500.0,0.00019452,2]
[355590826,1741336240429,-2374.33,0.00019452,2]
[355590827,1741336240439,-685.17,0.00019452,2]
[355590828,1741336240448,-5001.74739651,0.00019472,2]
[355590829,1741336240458,-501.01933349,0.00019473,2]
[355590830,1741336240467,-501.8227118,0.00019473,2]
[355590831,1741336240476,-500.26290423,0.00019473,2]
[355590832,1741336240486,-500.0,0.00019473,2]
[355590833,1741336240495,-324.64266076,0.00019473,2]
[355590834,1741336240506,-503.77540919,0.00019473,2]
[355590835,1741336240515,-257.86308025,0.00019473,2]
[355590836,1741336240526,-500.0,0.00019473,2]
[355590837,1741336240535,-151.02666011,0.00019473,2]
[355590838,1741336240544,-500.0,0.00019473,2]
[355590839,1741336240554,-500.0,0.00019473,2]
[355590840,1741336240563,-445.02033366,0.00019473,2]
[355590841,1741336240578,-499.63016318,0.00019473,2]
[355590842,1741336240588,-500.0,0.00019473,2]
[355590843,1741336240596,-500.0,0.00019473,2]
[355590844,1741336240606,-500.0,0.00019473,2]
[355590845,1741336240615,-501.72173097,0.00019473,2]
[355590846,1741336240625,-500.0,0.00019473,2]
[355590847,1741336240634,-500.0,0.00019473,2]
[355590848,1741336240644,-500.0,0.00019473,2]
[355590849,1741336240653,-500.0,0.00019473,2]
[355590850,1741336240662,-506.73751132,0.00019473,2]
[355590851,1741336240672,-161.7514123,0.00019473,2]
[355590852,1741336240680,-500.0,0.00019473,2]
[355590853,1741336240690,-500.84080311,0.00019473,2]
[355590854,1741336240699,-500.0,0.00019473,2]
[355590855,1741336240708,-500.0,0.00019473,2]
[355590856,1741336240718,-500.0,0.00019473,2]
[355590857,1741336240727,-500.0,0.00019473,2]
[355590858,1741336240736,-198.70039792,0.00019473,2]
[355590859,1741336240746,-395.74792537,0.00019473,2]
[355590861,1741336240755,-501.11836735,0.00019473,2]
[355590863,1741336240764,-500.0,0.00019473,2]
[355590864,1741336240773,-199.72740474,0.00019473,2]
[355590865,1741336240783,-500.0,0.00019473,2]
[355590866,1741336240792,-500.0,0.00019473,2]
[355590867,1741336240802,-504.7974877,0.00019473,2]
[355590868,1741336240811,-500.0,0.00019473,2]
[355590869,1741336240821,-500.0,0.00019473,2]
[355590870,1741336240831,-501.25040858,0.00019473,2]
[355590871,1741336240840,-342.58923267,0.00019473,2]
[355590872,1741336240849,-501.19393178,0.00019473,2]
[355590873,1741336240858,-500.0,0.00019473,2]
[355590874,1741336240868,-501.63055061,0.00019473,2]
[355590875,1741336240877,-502.221594,0.00019473,2]
[355590876,1741336240887,-500.0,0.00019473,2]
[355590877,1741336240897,-160.22361893,0.00019473,2]
[355590878,1741336240906,-500.0,0.00019473,2]
[355590879,1741336240916,-160.22361893,0.00019473,2]
[355590881,1741336240926,-500.0,0.00019473,2]
[355590882,1741336240936,-500.0,0.00019473,2]
[355590884,1741336240946,-500.0,0.00019473,2]
[355590885,1741336240956,-500.0,0.00019473,2]